bitfinex-derivatives/quotes_BTCF0:USTF0_20250509
["timestamp","ask_amount","ask_price","bid_price","bid_amount"]
[1746812948764,0.2580386,103280.0,103270.0,1.65446772]
[1746812949976,0.2580386,103280.0,103270.0,1.48703355]
[1746812953774,0.2580386,103280.0,103270.0,0.52812135]
[1746812955276,0.2580386,103280.0,103270.0,0.84812135]
[1746812955578,0.2580386,103280.0,103270.0,0.51812135]
[1746812955880,0.2580386,103280.0,103270.0,0.86812135]
[1746812956378,0.2580386,103280.0,103270.0,1.14253355]
[1746812958577,0.2652986,103280.0,103270.0,1.14253355]
[1746812959477,0.00826,103280.0,103270.0,1.30996772]
[1746812959670,0.00826,103280.0,103270.0,1.87167103]
[1746812960165,0.00826,103280.0,103270.0,1.88129949]
[1746812960368,0.00826,103280.0,103270.0,1.88129362]
[1746812960574,0.00826,103280.0,103270.0,1.88129223]
[1746812960773,0.00826,103280.0,103270.0,1.88129105]
[1746812960974,0.00726,103280.0,103270.0,1.88129105]
[1746812961270,0.00726,103280.0,103270.0,1.86645618]
[1746812961478,0.00726,103280.0,103270.0,1.88129265]
[1746812963179,0.00726,103280.0,103270.0,1.88128276]
[1746812963777,0.00726,103280.0,103270.0,1.8716543]
[1746812964073,0.07206,103280.0,103270.0,1.8716543]
[1746812964971,0.07206,103280.0,103270.0,1.54926013]
[1746812965172,0.07206,103280.0,103270.0,1.8716143]
[1746812966075,0.2656986,103280.0,103270.0,1.7166943]
[1746812966268,0.2656986,103280.0,103270.0,1.3247943]
[1746812966474,0.2656986,103280.0,103270.0,0.3044676]
[1746812966678,0.2656986,103280.0,103270.0,0.2420676]
[1746812966981,0.2656986,103280.0,103270.0,0.5620676]
[1746812967373,0.2656986,103280.0,103270.0,0.2420676]
[1746812967784,0.6264986,103280.0,103270.0,0.2420676]
[1746812967981,0.1936574,103270.0,103260.0,0.1936638]
[1746812968281,0.81539157,103270.0,103260.0,0.1936638]
[1746812968881,0.6479574,103270.0,103260.0,0.1936638]
[1746812969980,0.4219,103270.0,103260.0,1.00551017]
[1746812970283,0.2547574,103270.0,103260.0,1.39861017]
[1746812970580,0.2547574,103270.0,103260.0,1.5287484]
[1746812970581,0.2557574,103270.0,103260.0,1.5287484]
[1746812970982,0.0621,103270.0,103260.0,1.5287484]
[1746812971381,0.001,103270.0,103260.0,1.69618257]
[1746812972881,0.06756,103280.0,103270.0,0.1936574]
[1746812973085,0.2611986,103280.0,103270.0,1.46340377]
[1746812973386,0.2611986,103280.0,103270.0,1.56023262]
[1746812976483,0.2611986,103280.0,103270.0,1.39279845]
[1746812976683,0.2611986,103280.0,103270.0,1.56023262]
[1746812978089,0.2611986,103280.0,103270.0,1.39279845]
[1746812978291,0.2611986,103280.0,103270.0,1.56023262]
[1746812978975,0.06756,103280.0,103270.0,1.56023262]
[1746812979380,0.06756,103280.0,103270.0,1.57506039]
[1746812980783,0.06756,103280.0,103270.0,1.40762622]
[1746812980979,0.06756,103280.0,103270.0,1.57506039]
[1746812981180,0.2611986,103280.0,103270.0,1.57506039]
[1746812981688,0.06756,103280.0,103270.0,1.57506039]
[1746812983386,0.2611986,103280.0,103270.0,1.57506039]
[1746812983590,0.06756,103280.0,103270.0,1.57506039]
[1746812984587,0.2611986,103280.0,103270.0,1.57506039]
[1746812987090,0.2611986,103280.0,103270.0,0.73951402]
[1746812987291,0.2611986,103280.0,103270.0,0.91709737]
[1746812987492,0.2611986,103280.0,103270.0,1.06970377]
[1746812990096,0.2611986,103280.0,103270.0,0.9022696]
[1746812990395,0.2611986,103280.0,103270.0,1.06970377]
[1746812990894,0.2611986,103280.0,103270.0,0.9022696]
[1746812991196,0.2611986,103280.0,103270.0,1.06970377]
[1746812991386,0.2943986,103280.0,103270.0,1.06970377]
[1746812991589,0.2943986,103280.0,103270.0,0.6278574]
[1746812992898,0.2943986,103280.0,103270.0,0.79529157]
[1746812994596,0.2611986,103280.0,103270.0,0.79529157]
[1746812994890,0.00726,103280.0,103270.0,1.57457143]
[1746812995195,0.44695469,103300.0,103290.0,0.1936199]
[1746812995395,0.36415469,103300.0,103290.0,1.70190508]
[1746812995592,0.36415469,103300.0,103290.0,1.49359288]
[1746812995593,0.17055289,103300.0,103290.0,1.49359288]
[1746812995793,0.17055289,103300.0,103290.0,1.80100508]
[1746812995994,0.17055289,103300.0,103290.0,1.89783393]
[1746812996299,0.17055289,103300.0,103290.0,1.89781892]
[1746812996596,0.17055289,103300.0,103290.0,1.91203109]
[1746812997099,0.17055289,103300.0,103290.0,1.89720729]
[1746812997400,0.36415399,103300.0,103290.0,1.89720729]
[1746812997998,0.36415399,103300.0,103290.0,1.72977312]
[1746812998201,0.36415399,103300.0,103290.0,1.09226092]
[1746812998400,0.36515399,103300.0,103290.0,1.43506092]
[1746812998697,0.36515399,103300.0,103290.0,1.60249509]
[1746812999399,0.36515399,103300.0,103290.0,1.87690729]
[1746812999992,0.36515399,103300.0,103290.0,1.87674967]
[1746813000393,0.17155289,103300.0,103290.0,1.87674967]
[1746813000901,0.36515399,103300.0,103290.0,1.87674967]
[1746813001401,0.17155289,103300.0,103290.0,1.87674967]
[1746813001901,0.36515399,103300.0,103290.0,1.7093155]
[1746813004297,0.36515399,103300.0,103290.0,1.87674967]
[1746813005701,0.36515399,103300.0,103290.0,1.7093155]
[1746813009299,0.36515399,103300.0,103290.0,1.4349033]
[1746813009502,0.36515399,103300.0,103290.0,1.7093155]
[1746813009799,0.36515399,103300.0,103290.0,1.26968665]
[1746813010001,0.39815399,103300.0,103290.0,1.26968665]
[1746813010908,0.36515399,103300.0,103290.0,0.63447445]
[1746813011101,0.36515399,103300.0,103290.0,1.07882082]
[1746813011505,0.36515399,103300.0,103290.0,1.43962082]
[1746813012806,0.36515399,103300.0,103290.0,1.07882082]
[1746813014107,0.36515399,103300.0,103290.0,0.58138665]
[1746813014304,0.1936199,103290.0,103280.0,0.2420314]
[1746813014501,0.81675407,103290.0,103280.0,0.2735314]
[1746813014701,0.45595407,103290.0,103280.0,0.2735314]
[1746813014901,0.2885199,103290.0,103280.0,0.2735314]
[1746813015512,0.60117797,103290.0,103280.0,0.1936386]
[1746813015705,0.64958697,103290.0,103280.0,0.1936386]
[1746813017305,0.4821528,103290.0,103280.0,0.1936386]
[1746813017908,0.1936386,103280.0,103270.0,0.4007808]
[1746813018110,0.2595386,103280.0,103270.0,1.045193]
[1746813019216,0.2595386,103280.0,103270.0,1.048193]
[1746813022910,0.2595386,103280.0,103270.0,1.21562717]
[1746813023109,0.0659,103280.0,103270.0,1.70425602]
[1746813023315,0.3388596,103290.0,103280.0,0.1936386]
[1746813023515,0.4015596,103290.0,103280.0,1.39938497]
[1746813023815,0.4015596,103290.0,103280.0,1.2319508]
[1746813027814,0.4015596,103290.0,103280.0,0.8919508]
[1746813028214,0.4015596,103290.0,103280.0,1.2419508]
[1746813029416,0.4015596,103290.0,103280.0,1.25677344]
[1746813030527,0.3047423,103290.0,103280.0,1.42420761]
[1746813030726,0.2563356,103290.0,103280.0,1.52102709]
[1746813031419,0.2563199,103290.0,103280.0,1.52102709]
[1746813031823,0.2563199,103290.0,103280.0,1.35359292]
[1746813032119,0.2563199,103290.0,103280.0,1.52102709]
[1746813032620,0.2563199,103290.0,103280.0,1.52103781]
[1746813034121,0.2563199,103290.0,103280.0,1.35360364]
[1746813034422,0.2563199,103290.0,103280.0,1.50620445]
[1746813034922,0.2563199,103290.0,103280.0,1.33877028]
[1746813035318,0.2563199,103290.0,103280.0,1.23179225]
[1746813035517,0.2563199,103290.0,103280.0,1.50620445]
[1746813036624,0.2563199,103290.0,103280.0,1.09877028]
[1746813036813,0.2563199,103290.0,103280.0,1.34877028]
[1746813037323,0.2563199,103290.0,103280.0,1.36360887]
[1746813037716,0.2563199,103290.0,103280.0,0.97180887]
[1746813037922,0.2563199,103290.0,103280.0,0.5001508]
[1746813039522,0.2563199,103290.0,103280.0,0.2257386]
[1746813039723,0.2563199,103290.0,103280.0,0.5001508]
[1746813040222,0.2563199,103290.0,103280.0,0.8801508]
[1746813041122,0.2563199,103290.0,103280.0,0.5001508]
[1746813041317,0.2563199,103290.0,103280.0,0.8201508]
[1746813041910,0.2563199,103290.0,103280.0,0.5001508]
[1746813043125,0.2563199,103290.0,103280.0,0.8701508]
[1746813043518,0.2563199,103290.0,103280.0,0.5001508]
[1746813043722,0.2563199,103290.0,103280.0,0.8701508]
[1746813043928,0.2563199,103290.0,103280.0,0.2257386]
[1746813044426,0.2563199,103290.0,103280.0,0.5657386]
[1746813044725,0.2573199,103290.0,103280.0,0.5657386]
[1746813045020,0.2573199,103290.0,103280.0,0.0321]
[1746813045222,0.42475407,103290.0,103280.0,0.0321]
[1746813045426,0.1936386,103280.0,103270.0,0.3525711]
[1746813045723,0.2595386,103280.0,103270.0,0.6557122]
[1746813045917,0.2926386,103280.0,103270.0,0.8493696]
[1746813046520,0.46007277,103280.0,103270.0,0.3048122]
[1746813046722,0.1936574,103270.0,103260.0,0.03235259]
[1746813046930,0.1936761,103260.0,103250.0,0.03233704]
[1746813047120,0.2595761,103260.0,103250.0,0.54761727]
[1746813047424,0.2908761,103260.0,103250.0,0.5310071]
[1746813047625,0.2981361,103260.0,103250.0,0.5310071]
[1746813047817,0.46557027,103260.0,103250.0,0.032]
[1746813048024,0.2981361,103260.0,103250.0,0.2256949]
[1746813048225,0.30806963,103260.0,103250.0,0.2583949]
[1746813048426,0.30806963,103260.0,103250.0,0.6383949]
[1746813048628,0.30806963,103260.0,103250.0,0.6393949]
[1746813048927,0.27676963,103260.0,103250.0,1.08124127]
[1746813049230,0.2668361,103260.0,103250.0,1.56928888]
[1746813049523,0.00726,103260.0,103250.0,1.57128888]
[1746813049726,0.2009361,103260.0,103250.0,1.41850807]
[1746813049919,0.2009361,103260.0,103250.0,1.58594224]
[1746813050120,0.2009361,103260.0,103250.0,1.41850731]
[1746813050330,0.2009361,103260.0,103250.0,1.58594148]
[1746813051019,0.2651361,103260.0,103250.0,1.58594148]
[1746813051831,0.2651361,103260.0,103250.0,1.41850731]
[1746813052030,0.2651361,103260.0,103250.0,1.58594148]
[1746813052226,0.2651361,103260.0,103250.0,1.38810731]
[1746813052428,0.2651361,103260.0,103250.0,1.37345471]
[1746813052729,0.46317027,103260.0,103250.0,0.6213949]
[1746813052922,0.2957361,103260.0,103250.0,0.6213949]
[1746813057236,0.2651361,103260.0,103250.0,0.6213949]
[1746813057432,0.2651361,103260.0,103250.0,0.6526949]
[1746813058635,0.4092161,103260.0,103250.0,0.6526949]
[1746813060135,0.4092161,103260.0,103250.0,0.6213949]
[1746813061337,0.57665027,103260.0,103250.0,0.003]
[1746813061541,0.1937136,103240.0,103230.0,0.37341739]
[1746813061731,0.1937136,103240.0,103230.0,0.71922959]
[1746813062040,0.4009736,103240.0,103230.0,1.05922959]
[1746813062231,0.4009736,103240.0,103230.0,1.42002959]
[1746813062733,0.4009736,103240.0,103230.0,1.42502959]
[1746813063433,0.4009736,103240.0,103230.0,1.10264119]
[1746813063733,0.56840777,103240.0,103230.0,0.01297152]
[1746813064134,0.4009736,103240.0,103230.0,0.01297152]
[1746813064437,0.56840777,103240.0,103230.0,0.01297152]
[1746813064642,1.25920777,103240.0,103230.0,0.01297152]
[1746813064933,1.25920777,103240.0,103230.0,0.00997152]
[1746813065136,1.34200777,103240.0,103230.0,0.00797152]
[1746813065338,1.43887577,103240.0,103230.0,0.00797152]
[1746813068954,0.1937512,103220.0,103210.0,0.2569699]
[1746813069143,1.22618537,103220.0,103210.0,0.3376122]
[1746813069345,0.1937699,103210.0,103200.0,0.01819523]
[1746813069554,1.29068407,103210.0,103200.0,0.01819523]
[1746813069748,1.29068407,103210.0,103200.0,0.04989523]
[1746813070053,1.1232499,103210.0,103200.0,0.04989523]
[1746813070353,0.7624499,103210.0,103200.0,0.22946137]
[1746813070553,0.7624499,103210.0,103200.0,0.03567267]
[1746813071355,0.7624499,103210.0,103200.0,0.03967267]
[1746813072354,0.77196902,103210.0,103200.0,0.03967267]
[1746813073158,0.77196902,103210.0,103200.0,0.04367267]
[1746813074361,0.77196902,103210.0,103200.0,0.31808487]
[1746813075358,0.93940319,103210.0,103200.0,0.51187357]
[1746813075861,0.93940319,103210.0,103200.0,0.31808487]
[1746813076862,0.77196902,103210.0,103200.0,0.51187357]
[1746813077766,0.77196902,103210.0,103200.0,0.31808487]
[1746813079364,0.77196902,103210.0,103200.0,0.21808487]
[1746813079866,0.77196902,103210.0,103200.0,0.41187357]
[1746813080266,0.77196902,103210.0,103200.0,0.21808487]
[1746813080465,0.1937887,103200.0,103190.0,0.7782253]
[1746813080667,0.4605487,103200.0,103190.0,1.3409566]
[1746813081371,0.4605487,103200.0,103190.0,1.34095879]
[1746813082667,0.4605487,103200.0,103190.0,1.34595879]
[1746813082865,0.4605487,103200.0,103190.0,1.37915879]
[1746813083063,0.4605487,103200.0,103190.0,1.37916273]
[1746813083259,0.2858887,103200.0,103190.0,1.5465969]
[1746813083460,0.1937887,103200.0,103190.0,1.69495211]
[1746813084169,0.1937887,103200.0,103190.0,1.64650081]
[1746813084361,0.2255887,103200.0,103190.0,1.64650081]
[1746813084769,0.2255887,103200.0,103190.0,1.64650493]
[1746813088468,0.3455887,103200.0,103190.0,1.28526435]
[1746813088769,0.3776887,103200.0,103190.0,1.28526435]
[1746813090258,0.3776887,103200.0,103190.0,1.27060767]
[1746813090467,0.3776887,103200.0,103190.0,1.28529335]
[1746813091163,0.5202087,103200.0,103190.0,1.45272752]
[1746813091776,0.4002087,103200.0,103190.0,1.4527486]
[1746813092075,0.3679087,103200.0,103190.0,1.54965251]
[1746813092268,0.0318,103200.0,103190.0,1.54965251]
[1746813092568,0.0317,103210.0,103200.0,0.1937887]
[1746813092776,0.4506112,103220.0,103210.0,0.1937699]
[1746813092965,0.4506112,103220.0,103210.0,1.26386153]
[1746813093167,0.4506112,103220.0,103210.0,1.52819961]
[1746813093472,0.1143,103220.0,103210.0,1.52820894]
[1746813093767,0.2765512,103220.0,103210.0,1.52820894]
[1746813093963,0.2765512,103220.0,103210.0,1.52920467]
[1746813094361,0.2765512,103220.0,103210.0,1.53020467]
[1746813094869,0.00145404,103230.0,103220.0,0.1937512]
[1746813095081,0.00145404,103230.0,103220.0,1.38858206]
[1746813095374,0.19518644,103230.0,103220.0,1.4854672]
[1746813095559,0.19518644,103230.0,103220.0,1.49498871]
[1746813095763,0.19518644,103230.0,103220.0,1.4854672]
[1746813096965,0.00245404,103230.0,103220.0,1.48544718]
[1746813097475,0.001,103230.0,103220.0,1.74975734]
[1746813097672,0.001,103230.0,103220.0,1.58232317]
[1746813098262,0.001,103230.0,103220.0,1.74232317]
[1746813098467,0.3529598,103250.0,103240.0,0.1937136]
[1746813098673,0.3529598,103250.0,103240.0,1.64552444]
[1746813098873,0.0624,103250.0,103240.0,1.70892444]
[1746813099065,0.2560949,103250.0,103240.0,1.80580019]
[1746813100276,0.2580949,103250.0,103240.0,1.80580019]
[1746813100472,0.2600949,103250.0,103240.0,1.79110839]
[1746813101874,0.2600949,103250.0,103240.0,1.62367422]
[1746813102375,0.2600949,103250.0,103240.0,1.59087422]
[1746813103181,0.2600949,103250.0,103240.0,1.75830839]
[1746813103377,0.2600949,103250.0,103240.0,1.79140839]
[1746813107987,0.2673549,103250.0,103240.0,1.79140839]
[1746813109682,0.07366,103250.0,103240.0,1.79140839]
[1746813109888,0.07366,103250.0,103240.0,1.62397422]
[1746813110185,0.07366,103250.0,103240.0,1.79140839]
[1746813110579,0.04246,103250.0,103240.0,1.79140839]
[1746813110983,0.2361549,103250.0,103240.0,1.79140839]
[1746813111381,0.04246,103250.0,103240.0,1.79140839]
[1746813111678,0.2361549,103250.0,103240.0,1.79140839]
[1746813112273,0.04246,103250.0,103240.0,1.80094463]
[1746813112673,0.01126,103250.0,103240.0,1.80094463]
[1746813112976,0.2296761,103260.0,103250.0,0.1936949]
[1746813113172,0.2617761,103260.0,103250.0,1.37451394]
[1746813113583,0.2617761,103260.0,103250.0,1.47137093]
[1746813115091,0.2617761,103260.0,103250.0,1.48575461]
[1746813119989,0.2617761,103260.0,103250.0,1.62843461]
[1746813119990,0.004,103260.0,103250.0,1.62843461]
[1746813120381,0.2297761,103260.0,103250.0,1.62843461]
[1746813120582,0.2620761,103260.0,103250.0,1.62843461]
[1746813121488,0.2620761,103260.0,103250.0,1.64311015]
[1746813121687,0.0684,103260.0,103250.0,1.64311015]
[1746813123090,0.2620761,103260.0,103250.0,1.64311015]
[1746813123485,0.2620761,103260.0,103250.0,1.64313878]
[1746813124686,0.2928761,103260.0,103250.0,1.64313878]
[1746813124987,0.2928761,103260.0,103250.0,1.22571974]
[1746813125196,0.2928761,103260.0,103250.0,1.16313518]
[1746813125397,0.2928761,103260.0,103250.0,1.02045518]
[1746813125583,0.2928761,103260.0,103250.0,1.21888935]
[1746813126496,0.2928761,103260.0,103250.0,1.26954005]
[1746813128792,0.2928761,103260.0,103250.0,1.23854752]
[1746813129092,0.5528761,103260.0,103250.0,0.95360566]
[1746813129496,0.5528761,103260.0,103250.0,0.98550566]
[1746813130597,0.5528761,103260.0,103250.0,0.98550439]
[1746813131784,0.5528761,103260.0,103250.0,0.94550439]
[1746813132397,0.5528761,103260.0,103250.0,1.16358926]
[1746813133390,0.5528761,103260.0,103250.0,0.58360439]
[1746813133696,0.5528761,103260.0,103250.0,0.96360439]
[1746813139609,0.5528761,103260.0,103250.0,1.17169749]
[1746813139793,0.5528761,103260.0,103250.0,1.20459749]
[1746813141005,0.5558761,103260.0,103250.0,1.20459749]
[1746813141207,0.5558761,103260.0,103250.0,1.14459749]
[1746813141705,0.5558761,103260.0,103250.0,1.11169749]
[1746813142305,0.5558761,103260.0,103250.0,0.80169749]
[1746813142608,0.91499027,103260.0,103250.0,0.37553404]
[1746813142796,0.91499027,103260.0,103250.0,0.01473404]
[1746813143407,0.1936949,103250.0,103240.0,0.6997764]
[1746813143606,0.2569949,103250.0,103240.0,0.75590764]
[1746813144199,0.2642549,103250.0,103240.0,0.75590764]
[1746813144399,0.43168907,103250.0,103240.0,0.75590764]
[1746813145008,0.2642549,103250.0,103240.0,0.66590396]
[1746813145507,0.2682549,103250.0,103240.0,0.66590396]
[1746813146308,0.2712549,103250.0,103240.0,0.66590396]
[1746813146508,0.2712549,103250.0,103240.0,0.97590396]
[1746813148208,0.2712549,103250.0,103240.0,0.37535516]
[1746813148511,0.1937136,103240.0,103230.0,0.7642166]
[1746813148705,0.2874136,103240.0,103230.0,1.50428479]
[1746813148906,0.2874136,103240.0,103230.0,1.60114178]
[1746813149610,0.2884136,103240.0,103230.0,1.60114178]
[1746813150208,0.2904136,103240.0,103230.0,1.60114178]
[1746813152312,0.2904136,103240.0,103230.0,1.60114356]
[1746813154103,0.2904136,103240.0,103230.0,1.43370939]
[1746813154317,0.2904136,103240.0,103230.0,1.38305869]
[1746813154507,0.2904136,103240.0,103230.0,1.60114356]
[1746813156420,0.2904136,103240.0,103230.0,1.43370939]
[1746813156713,0.2904136,103240.0,103230.0,1.60114356]
[1746813157015,0.2904136,103240.0,103230.0,1.58659263]
[1746813157207,0.2904136,103240.0,103230.0,1.41915846]
[1746813157716,0.2904136,103240.0,103230.0,1.43371261]
[1746813158216,0.2904136,103240.0,103230.0,1.60114678]
[1746813159412,0.2904136,103240.0,103230.0,1.60114696]
[1746813161614,0.2904136,103240.0,103230.0,1.60114818]
[1746813162308,0.2904136,103240.0,103230.0,1.43371401]
[1746813162510,0.2904136,103240.0,103230.0,1.60114818]
[1746813163007,0.2904136,103240.0,103230.0,1.60114842]
[1746813163715,0.2904136,103240.0,103230.0,1.43371425]
[1746813163912,0.2904136,103240.0,103230.0,1.54372475]
[1746813164315,0.2904136,103240.0,103230.0,1.54372802]
[1746813165718,0.2904136,103240.0,103230.0,1.43371752]
[1746813166508,0.2904136,103240.0,103230.0,1.07292255]
[1746813166709,0.7720153,103240.0,103220.0,0.6818045]
[1746813167007,0.2541324,103230.0,103220.0,1.46520297]
[1746813167213,0.2541324,103230.0,103220.0,1.51720297]
[1746813168217,0.26398869,103230.0,103220.0,1.51720297]
[1746813168820,0.2541324,103230.0,103220.0,1.51720297]
[1746813169820,0.2541324,103230.0,103220.0,1.51720221]
[1746813170305,0.0604,103230.0,103220.0,1.29911734]
[1746813170511,0.2238324,103230.0,103220.0,1.61407796]
[1746813171018,0.2238324,103230.0,103220.0,1.50406746]
[1746813171219,0.2238324,103230.0,103220.0,1.61407796]
[1746813171522,0.2238324,103230.0,103220.0,1.61408189]
[1746813172822,0.2310924,103230.0,103220.0,1.61408189]
[1746813173122,0.2310924,103230.0,103220.0,1.59951252]
[1746813173309,0.2310924,103230.0,103220.0,1.61409158]
[1746813173925,0.2611924,103230.0,103220.0,1.61409158]
[1746813176724,0.2611924,103230.0,103220.0,1.61408904]
[1746813177022,0.2611924,103230.0,103220.0,1.50407854]
[1746813177223,0.2611924,103230.0,103220.0,1.61408904]
[1746813178318,0.2611924,103230.0,103220.0,1.61409041]
[1746813181114,0.2611924,103230.0,103220.0,1.50407991]
[1746813181527,0.2611924,103230.0,103220.0,1.61409041]
[1746813183321,0.2611924,103230.0,103220.0,1.61409]
[1746813184629,0.2611924,103230.0,103220.0,1.5040795]
[1746813184829,0.2611924,103230.0,103220.0,1.61409]
[1746813185030,0.2611924,103230.0,103220.0,1.61409062]
[1746813187527,0.3712029,103230.0,103220.0,1.13303872]
[1746813187729,0.4211924,103230.0,103220.0,0.0145781]
[1746813188030,0.5312029,103230.0,103220.0,0.2083293]
[1746813188423,0.4211924,103230.0,103220.0,0.2083293]
[1746813188624,0.4211924,103230.0,103220.0,0.6213293]
[1746813188824,0.4211924,103230.0,103220.0,0.6067512]
[1746813190328,0.5911924,103230.0,103220.0,0.2267512]
[1746813191225,0.5911924,103230.0,103220.0,0.1937512]
[1746813191428,0.5911924,103230.0,103220.0,0.41183607]
[1746813192633,0.5911924,103230.0,103220.0,0.44233607]
[1746813193133,0.5931924,103230.0,103220.0,0.44233607]
[1746813193636,0.5931924,103230.0,103220.0,0.82233607]
[1746813193835,0.6263924,103230.0,103220.0,0.82233607]
[1746813194437,0.6283924,103230.0,103220.0,0.82233607]
[1746813195334,0.6283924,103230.0,103220.0,0.44233607]
[1746813195535,0.6283924,103230.0,103220.0,0.75233607]
[1746813196238,0.6283924,103230.0,103220.0,0.82233607]
[1746813198338,0.6283924,103230.0,103220.0,1.18313607]
[1746813201638,0.6283924,103230.0,103220.0,1.41795099]
[1746813201836,0.01126,103230.0,103220.0,1.57552674]
[1746813202040,0.0524221,103260.0,103250.0,0.1936949]
[1746813202041,0.00545323,103260.0,103250.0,0.1936949]
[1746813202232,0.00545323,103260.0,103250.0,1.64998409]
[1746813202537,0.03675323,103260.0,103250.0,1.68288409]
[1746813202731,0.23042933,103260.0,103250.0,1.77975984]
[1746813202931,0.23042933,103260.0,103250.0,1.66974934]
[1746813203542,0.72543983,103260.0,103250.0,0.23908882]
[1746813203841,0.92896114,103260.0,103250.0,0.2242949]
[1746813204143,0.76134933,103260.0,103250.0,0.2242949]
[1746813204333,0.76134933,103260.0,103250.0,0.44237967]
[1746813204732,0.76534933,103260.0,103250.0,0.44237967]
[1746813205133,0.79574933,103260.0,103250.0,0.44237967]
[1746813205333,0.7942961,103260.0,103250.0,0.44237967]
[1746813207642,0.1936949,103250.0,103240.0,0.6513528]
[1746813207835,0.2876949,103250.0,103240.0,1.27053757]
[1746813208835,0.2906949,103250.0,103240.0,1.27053757]
[1746813209240,0.2906949,103250.0,103240.0,1.30223757]
[1746813209441,0.2916949,103250.0,103240.0,1.30223757]
[1746813210939,0.098,103250.0,103240.0,1.46984938]
[1746813211235,0.0667,103250.0,103240.0,1.56670637]
[1746813211442,0.2603949,103250.0,103240.0,1.56670637]
[1746813211838,0.2603949,103250.0,103240.0,1.39909456]
[1746813217032,0.2603949,103250.0,103240.0,1.56670637]
[1746813217233,0.004,103250.0,103240.0,1.56670637]
[1746813217945,0.004,103250.0,103240.0,1.58145577]
[1746813218141,0.004,103250.0,103240.0,1.56670637]
[1746813218544,0.1976949,103250.0,103240.0,1.56670637]
[1746813218937,0.004,103250.0,103240.0,1.58145572]
[1746813219138,0.004,103250.0,103240.0,1.58145582]
[1746813219542,0.004,103250.0,103240.0,1.5814558]
[1746813220138,0.004,103250.0,103240.0,1.59121056]
[1746813220538,0.004,103250.0,103240.0,1.5814558]
[1746813222835,0.004,103250.0,103240.0,1.41384701]
[1746813223037,0.004,103250.0,103240.0,1.72669882]
[1746813223851,0.004,103250.0,103240.0,1.77902999]
[1746813224146,0.004,103250.0,103240.0,1.78879012]
[1746813224347,0.004,103250.0,103240.0,1.77902999]
[1746813224541,0.004,103250.0,103240.0,1.77903531]
[1746813225343,0.004,103250.0,103240.0,1.66906382]
[1746813226249,0.004,103250.0,103240.0,1.66906806]
[1746813226448,0.0364,103250.0,103240.0,1.66906806]
[1746813227649,0.0364,103250.0,103240.0,1.67862914]
[1746813227948,0.0364,103250.0,103240.0,1.66906806]
[1746813229136,0.0364,103250.0,103240.0,1.65430605]
[1746813229550,0.0364,103250.0,103240.0,1.66908703]
[1746813229746,0.0364,103250.0,103240.0,1.65430605]
[1746813230151,0.0364,103250.0,103240.0,1.66908771]
[1746813230339,0.067,103250.0,103240.0,1.66908771]
[1746813231350,0.067,103250.0,103240.0,1.66909936]
[1746813231837,0.067,103250.0,103240.0,1.77907085]
[1746813232042,0.004,103250.0,103240.0,1.77907085]
[1746813232242,0.004,103250.0,103240.0,1.93907085]
[1746813232844,0.004,103250.0,103240.0,3.43907085]
[1746813233951,0.001,103250.0,103240.0,3.43907085]
[1746813234148,0.002,103250.0,103240.0,3.28877953]
[1746813234349,0.002,103250.0,103240.0,3.06883655]
[1746813234651,0.002,103250.0,103240.0,3.28877953]
[1746813238055,0.002,103250.0,103240.0,3.43041953]
[1746813238852,0.002,103250.0,103240.0,3.46351953]
[1746813239057,0.002,103250.0,103240.0,3.09222787]
[1746813239258,0.2899949,103250.0,103240.0,1.44698787]
[1746813239458,0.0963,103250.0,103240.0,1.69859936]
[1746813239863,0.0963,103250.0,103240.0,1.69861559]
[1746813241560,0.2899949,103250.0,103240.0,1.69861575]
[1746813241763,0.0963,103250.0,103240.0,1.69861575]
[1746813242561,0.0963,103250.0,103240.0,1.70824274]
[1746813243561,0.0963,103250.0,103240.0,1.69861575]
[1746813246061,0.10356,103250.0,103240.0,1.69861575]
[1746813246660,0.10356,103250.0,103240.0,1.69861767]
[1746813247964,0.10356,103250.0,103240.0,1.80858916]
[1746813248166,0.10356,103250.0,103240.0,1.69861767]
[1746813249267,0.10356,103250.0,103240.0,1.80858916]
[1746813249856,0.07276,103250.0,103240.0,1.80858916]
[1746813250368,0.00926,103250.0,103240.0,1.80858916]
[1746813250564,0.1015,103260.0,103250.0,0.1936949]
[1746813250764,0.22799399,103280.0,103270.0,0.1936574]
[1746813250959,0.03465309,103280.0,103270.0,1.27732698]
[1746813251269,0.03465309,103280.0,103270.0,3.33088397]
[1746813251868,0.00145309,103280.0,103270.0,3.33088397]
[1746813252066,0.21640255,103290.0,103280.0,0.1936386]
[1746813252273,0.21640255,103290.0,103280.0,1.30970818]
[1746813252671,0.21640255,103290.0,103280.0,1.40653703]
[1746813252866,0.21639945,103290.0,103280.0,1.40653703]
[1746813253470,0.21639945,103290.0,103280.0,1.40650334]
[1746813253973,0.2287199,103290.0,103280.0,1.46398876]
[1746813254174,0.2307199,103290.0,103280.0,1.46398876]
[1746813254472,0.2317199,103290.0,103280.0,1.46398876]
[1746813255270,0.0381,103290.0,103280.0,1.24590399]
[1746813255572,0.007,103290.0,103280.0,1.46398876]
[1746813255770,0.0381,103290.0,103280.0,1.46398876]
[1746813255979,0.0684,103290.0,103280.0,1.46398876]
[1746813256777,0.0684,103290.0,103280.0,2.96398876]
[1746813257579,0.0684,103290.0,103280.0,3.10558876]
[1746813258375,0.0684,103290.0,103280.0,3.12029509]
[1746813260079,0.0684,103290.0,103280.0,3.12029135]
[1746813261282,0.0684,103290.0,103280.0,3.10554896]
[1746813261584,0.0684,103290.0,103280.0,3.12028946]
[1746813261880,0.0684,103290.0,103280.0,3.12029047]
[1746813262282,0.0684,103290.0,103280.0,3.10554896]
[1746813262483,0.0684,103290.0,103280.0,3.12028932]
[1746813262883,0.0684,103290.0,103280.0,2.95283241]
[1746813263081,0.0684,103290.0,103280.0,3.12028932]
[1746813265078,0.0684,103290.0,103280.0,3.12028516]
[1746813265482,0.0684,103290.0,103280.0,3.10554896]
[1746813267680,0.0684,103290.0,103280.0,2.93809205]
[1746813267981,0.42947681,103290.0,103280.0,1.04620728]
[1746813268484,0.2620199,103290.0,103280.0,1.04620728]
[1746813269179,0.42947681,103290.0,103280.0,0.62937843]
[1746813269580,0.42947681,103290.0,103280.0,0.59917843]
[1746813269786,0.42947681,103290.0,103280.0,0.91917843]
[1746813270585,0.42947681,103290.0,103280.0,0.56917843]
[1746813270973,0.42947681,103290.0,103280.0,0.88917843]
[1746813271280,0.42947681,103290.0,103280.0,0.01473983]
[1746813271281,0.57091681,103290.0,103280.0,0.01473983]
[1746813271477,0.93171681,103290.0,103280.0,0.1936386]
[1746813271678,0.7642599,103290.0,103280.0,0.1936386]
[1746813271884,0.93171681,103290.0,103280.0,0.1936386]
[1746813272181,0.93171681,103290.0,103270.0,0.537135]
[1746813272182,0.1936386,103280.0,103270.0,0.7307775]
[1746813272482,0.45759551,103280.0,103270.0,1.1007775]
[1746813272887,0.45759551,103280.0,103270.0,0.7307775]